bitfinex/quotes_ETHUSD_20240601
["timestamp","ask_amount","ask_price","bid_price","bid_amount"]
[1717200880255,0.644,3763.0,3762.0,3.6731]
[1717200883322,0.644,3762.8,3762.0,3.6731]
[1717200884817,13.98401,3763.1,3762.0,3.939]
[1717200885017,0.644,3762.9,3762.0,3.939]
[1717200892339,0.644,3762.7,3762.0,3.939]
[1717200897348,0.644,3762.7,3762.0,3.6731]
[1717200899448,0.644,3762.5,3761.9,2.65823]
[1717200899645,1.21868789,3762.5,3761.9,2.65823]
[1717200900161,2.65789,3762.4,3761.7,2.2733]
[1717200900306,2.65789,3762.4,3761.5,4.93177]
[1717200900307,0.644,3762.3,3761.5,4.93177]
[1717200900507,1.21868789,3762.3,3761.5,4.93177]
[1717200902654,0.644,3762.1,3761.5,4.93177]
[1717200903021,1.21868789,3762.3,3761.5,4.93177]
[1717200904075,0.57468789,3762.3,3761.5,4.93177]
[1717200904552,3.30189,3762.4,3761.5,4.93177]
[1717200904921,0.57476693,3762.3,3761.5,4.93177]
[1717200905451,3.30189,3762.4,3761.5,4.93177]
[1717200905655,0.57476659,3762.3,3761.5,4.93177]
[1717200906641,0.57477721,3762.3,3761.5,4.93177]
[1717200907610,0.644,3762.2,3761.5,4.93177]
[1717200907951,0.644,3761.8,3761.3,2.2733]
[1717200908261,0.644,3761.8,3761.1,2.65875]
[1717200909010,0.644,3761.8,3760.7,2.65904]
[1717200909011,0.644,3761.6,3760.7,2.65904]
[1717200909234,0.644,3761.4,3760.7,2.65904]
[1717200910505,0.644,3761.2,3760.3,3.30335]
[1717200910746,0.644,3761.2,3760.4,0.2659]
[1717200912958,0.644,3761.0,3760.3,2.92525]
[1717200913455,0.644,3761.0,3760.3,2.65935]
[1717200913667,0.644,3760.8,3760.0,2.2733]
[1717200914041,0.644,3760.8,3760.1,0.2659]
[1717200914241,0.644,3760.8,3760.0,2.2733]
[1717200914565,0.644,3760.8,3759.9,2.65962]
[1717200915129,2.2591,3760.9,3760.0,0.2659]
[1717200915325,2.65891,3761.0,3760.1,2.65948]
[1717200915540,2.65891,3761.0,3760.2,2.2733]
[1717200916920,0.644,3760.9,3760.2,2.2733]
[1717200917551,0.644,3760.9,3760.1,2.65948]
[1717200918263,2.9963,3760.7,3760.1,2.65948]
[1717200918432,0.644,3760.5,3759.5,4.95361]
[1717200918631,0.644,3760.3,3759.5,4.95361]
[1717200918869,0.644,3760.3,3759.5,5.513371]
[1717200919021,0.644,3760.5,3759.5,6.157371]
[1717200919216,12.44143,3760.7,3759.6,0.2659]
[1717200919217,0.644,3760.3,3759.6,0.2659]
[1717200919422,0.644,3760.3,3759.5,4.95361]
[1717200920365,0.644,3760.3,3759.5,5.21951]
[1717200922782,0.644,3760.3,3759.5,2.92581]
[1717200923071,0.644,3760.1,3759.5,2.92581]
[1717200924070,0.644,3760.1,3759.5,2.65991]
[1717200924280,2.65929,3760.4,3759.6,0.2659]
[1717200924429,3.30329,3760.4,3759.6,0.2659]
[1717200928346,3.30329,3760.4,3759.5,2.65991]
[1717200928347,0.644,3760.4,3759.7,2.65978]
[1717200932401,0.644,3760.4,3759.7,4.95348]
[1717200932546,7.43,3760.7,3760.2,2.65937]
[1717200933548,7.43,3760.7,3760.6,2.2937]
[1717200933754,0.17051639,3761.4,3760.6,2.2937]
[1717200933755,7.60051639,3761.4,3760.8,2.65898]
[1717200935385,7.60051639,3761.4,3760.8,3.30298]
[1717200937188,0.17051639,3761.4,3760.8,2.65898]
[1717200940189,0.17051639,3761.4,3761.1,2.92465]
[1717200942069,0.17051639,3761.4,3761.3,2.65865]
[1717200943313,7.43,3761.8,3761.3,3.30265]
[1717200943460,20.314,3762.3,3761.3,3.30265]
[1717200945105,0.644,3761.9,3761.3,2.65865]
[1717200949764,0.644,3761.5,3760.9,4.98061]
[1717200950057,0.644,3761.3,3760.9,2.65891]
[1717200950207,0.644,3761.4,3760.9,2.65891]
[1717200950774,0.644,3761.4,3760.7,0.2659]
[1717200951584,2.2906,3761.8,3760.8,2.65899]
[1717200951789,0.644,3761.7,3760.9,0.2659]
[1717200952618,2.65826,3761.9,3761.1,2.3217]
[1717200952829,3.0,3761.8,3761.1,2.5876]
[1717200953430,12.37858,3762.3,3761.2,3.30268]
[1717200953585,12.37858,3762.3,3761.2,4.18855195]
[1717200953774,13.02258,3762.3,3761.2,4.18855195]
[1717200955028,0.644,3762.1,3761.2,4.18855195]
[1717200955499,0.644,3762.1,3761.2,3.54455195]
[1717200955888,0.644,3762.0,3761.2,3.54455195]
[1717200956092,12.37858,3762.3,3761.2,3.54455195]
[1717200956329,0.644,3762.0,3761.2,3.54455195]
[1717200957969,3.3022,3762.0,3761.1,2.3217]
[1717200958268,0.644,3761.8,3761.1,2.3217]
[1717200958620,2.6582,3762.0,3761.1,4.98047]
[1717200958819,3.3022,3762.0,3761.1,4.98047]
[1717200959250,2.6582,3762.0,3761.1,4.98047]
[1717200959566,3.3022,3762.0,3761.1,4.98047]
[1717200960070,3.3022,3762.0,3761.1,5.24637]
[1717200960571,7.43,3762.3,3761.4,2.65855]
[1717200960860,3.644,3762.2,3761.4,2.65855]
[1717200961917,0.644,3762.0,3761.4,2.65855]
[1717200962718,0.644,3762.0,3761.2,0.2659]
[1717200962918,0.644,3761.8,3761.1,2.5876]
[1717200963365,2.65837,3761.7,3760.6,5.1354]
[1717200963516,0.644,3761.4,3760.6,5.1354]
[1717200964067,0.644,3761.4,3760.6,5.97924]
[1717200964252,2.65851,3761.5,3760.6,6.62324]
[1717200964884,2.65851,3761.5,3760.6,5.97924]
[1717200965037,2.65851,3761.5,3760.7,0.644]
[1717200965247,2.65851,3761.5,3760.7,1.03175903]
[1717200966271,2.65851,3761.5,3760.7,0.38775903]
[1717200966491,2.65851,3761.5,3760.6,6.0453]
[1717200967467,2.65851,3761.5,3760.6,5.4013]
[1717200967684,0.644,3761.4,3760.6,2.6591]
[1717200968177,2.65865,3761.3,3760.3,2.4763]
[1717200968325,3.0489,3761.2,3760.3,2.4763]
[1717200968754,3.0489,3761.2,3760.2,3.3034]
[1717200969342,3.0489,3761.2,3760.2,3.88137]
[1717200969771,3.0489,3761.2,3760.3,0.2659]
[1717200969968,3.0489,3761.2,3760.2,3.88137]
[1717200970273,2.65882,3761.1,3760.2,2.6594]
[1717200970478,0.644,3761.0,3760.2,2.6594]
[1717200973184,0.644,3760.8,3759.8,2.65971]
[1717200973400,2.4049,3760.7,3759.8,2.65971]
[1717200974156,0.644,3760.6,3759.8,2.65971]
[1717200976675,3.30318,3760.6,3759.8,2.65971]
[1717200977484,3.30318,3760.6,3759.6,0.2659]
[1717200977668,0.644,3760.0,3759.4,2.65996]
[1717200977896,3.0356,3760.0,3759.1,0.1258101]
[1717200978097,3.0356,3760.0,3759.1,1.35518611]
[1717200978408,3.0356,3760.0,3759.1,0.71118611]
[1717200978706,3.0356,3760.0,3759.1,0.97708611]
[1717200978883,2.3916,3760.0,3759.1,0.97708611]
[1717200979088,2.65942,3760.3,3759.4,0.2659]
[1717200979268,2.65942,3760.3,3759.5,0.644]
[1717200979473,2.65942,3760.3,3759.4,0.36371461]
[1717200979687,2.65942,3760.3,3759.3,2.66006]
[1717200979887,2.3916,3760.2,3759.3,2.66006]
[1717200981373,2.65951,3760.1,3759.3,2.66006]
[1717200982074,2.65951,3760.1,3759.3,2.92596]
[1717200984132,2.65951,3760.1,3759.3,2.66006]
[1717200985073,2.65951,3760.1,3759.3,2.92596]
[1717200987674,2.3916,3760.0,3759.1,0.1258101]
[1717200987982,2.3916,3759.8,3759.1,0.1258101]
[1717200990712,10.43,3760.4,3759.1,0.1258101]
[1717200990713,2.65981,3759.7,3759.1,0.1258101]
[1717200990881,2.3916,3759.6,3759.1,0.1258101]
[1717200996913,3.20994,3759.5,3759.1,0.1258101]
[1717200997131,2.3916,3759.4,3759.1,0.1258101]
[1717200998193,2.66006,3759.3,3759.1,0.1258101]
[1717200998537,5.9223,3759.2,3759.1,0.1258101]
[1717200999745,6.49761541,3759.2,3759.1,0.1258101]
[1717201000738,5.9223,3759.2,3759.1,0.1258101]
[1717201001142,6.49762184,3759.2,3759.1,0.1258101]
[1717201001326,2.3723,3758.7,3757.4,2.66138]
[1717201001701,2.3723,3758.5,3757.4,2.66138]
[1717201002323,2.3723,3758.5,3757.6,2.92713]
[1717201003317,2.3723,3758.5,3757.7,2.3195]
[1717201003518,2.66061,3758.6,3757.7,2.3195]
[1717201003842,2.66061,3758.6,3757.6,2.92713]
[1717201004927,9.8023,3758.8,3758.0,2.66094]
[1717201005158,9.8023,3758.8,3758.1,2.3195]
[1717201005159,7.43,3758.8,3758.1,2.3195]
[1717201005972,7.43,3759.5,3758.6,0.2659]
[1717201006292,8.076,3759.5,3758.7,2.66048]
[1717201007690,7.43,3759.5,3758.7,2.66048]
[1717201008054,2.66001,3759.4,3758.1,2.3195]
[1717201008395,2.66001,3759.4,3758.4,0.2659]
[1717201008729,3.55,3759.3,3758.3,2.66076]
[1717201008935,2.3723,3759.2,3758.3,2.66076]
[1717201009565,3.55,3759.3,3758.3,2.66076]
[1717201010364,3.55,3759.3,3758.3,2.92666]
[1717201010848,3.0,3759.3,3758.3,2.92666]
[1717201014384,3.0,3759.3,3758.4,0.2663]
[1717201014683,3.0,3759.3,3758.5,2.66058]
[1717201015008,7.43,3759.5,3758.9,2.66034]
[1717201015519,7.43,3759.5,3759.0,0.2663]
[1717201016783,7.43,3759.5,3759.1,2.66019]
[1717201017939,7.43,3759.5,3758.7,2.66049]
[1717201021628,2.66017,3759.2,3758.3,2.66076]
[1717201021800,2.66017,3759.2,3758.0,0.2663]
[1717201021987,3.0,3759.1,3757.5,2.4867]
[1717201022311,7.43,3759.0,3758.2,2.66079]
[1717201022609,7.43,3759.0,3758.2,2.92709]
[1717201023163,7.43,3759.0,3758.8,2.66038]
[1717201023290,12.24,3759.5,3758.8,2.66038]
[1717201024523,12.24,3759.5,3758.0,2.66096]
[1717201024524,5.0868,3759.4,3758.0,2.66096]
[1717201024672,2.66026,3759.1,3758.0,2.66096]
[1717201025686,2.66026,3759.1,3758.0,2.92726]
[1717201025886,3.0,3759.0,3758.0,2.66096]
[1717201026930,2.66043,3758.8,3758.0,2.66096]
[1717201027933,2.66043,3758.8,3758.0,2.92726]
[1717201028621,2.66043,3758.8,3758.0,2.66096]
[1717201028790,2.66043,3758.8,3758.0,2.92726]
[1717201029239,2.66043,3758.8,3758.0,2.66096]
[1717201029938,2.66043,3758.8,3758.1,0.2663]
[1717201030152,2.66043,3758.8,3758.0,2.66096]
[1717201031052,2.66043,3758.8,3758.0,2.92726]
[1717201032712,2.66043,3758.8,3758.0,2.66096]
[1717201032913,2.66043,3758.8,3758.1,0.2663]
[1717201034747,0.55,3758.9,3758.1,0.2663]
[1717201034983,3.0,3759.0,3758.2,2.92709]
[1717201037427,2.4268,3758.9,3758.2,2.92709]
[1717201042797,2.4268,3758.9,3758.2,2.66079]
[1717201044551,5.08718,3758.9,3757.8,2.66108]
[1717201044672,2.66058,3758.6,3757.8,2.66108]
[1717201047515,2.4035,3758.5,3757.8,2.66108]
[1717201049280,2.66072,3758.4,3757.4,2.66137]
[1717201049785,2.66072,3758.4,3757.5,0.2663]
[1717201051830,2.66072,3758.4,3757.4,2.66137]
[1717201052061,2.66072,3758.4,3757.4,3.30837]
[1717201052676,0.647,3758.3,3757.4,3.30837]
[1717201053178,2.4035,3758.2,3757.4,3.30837]
[1717201053878,2.4035,3758.2,3757.4,2.66137]
[1717201054509,2.66092,3758.1,3757.4,2.66137]
[1717201054824,3.30792,3758.1,3757.2,0.9133]
[1717201055235,3.30792,3758.1,3757.1,0.2663]
[1717201057294,3.30792,3758.1,3757.1,0.9133]
[1717201057694,3.30792,3758.1,3757.1,0.647]
[1717201058088,3.30792,3758.1,3757.0,2.66165]
[1717201058341,2.4035,3757.8,3757.0,2.66165]
[1717201058687,2.4035,3757.8,3757.1,0.647]
[1717201060139,2.4035,3757.8,3757.2,0.647]
[1717201060648,2.4035,3757.8,3757.0,2.92795]
[1717201060861,3.0505,3757.8,3757.0,2.92795]
[1717201061154,3.0505,3757.8,3756.6,2.66193]
[1717201061155,0.647,3757.6,3756.6,2.66193]
[1717201061360,0.647,3757.6,3756.7,0.647]
[1717201061801,0.647,3757.6,3756.8,2.66182]
[1717201062002,2.66121,3757.7,3756.8,2.66182]
[1717201062236,2.66121,3757.7,3756.9,0.2663]
[1717201065996,2.4035,3757.8,3757.1,2.66159]
[1717201066495,5.4035,3757.8,3757.1,2.66159]
[1717201066871,0.647,3757.7,3757.1,2.66159]
[1717201067078,2.4511,3757.6,3756.8,0.2663]
[1717201067706,2.4511,3757.4,3756.8,0.2663]
[1717201067932,2.4511,3757.4,3756.7,2.66187]
[1717201069861,2.4511,3757.4,3756.7,3.30887]
[1717201070055,2.66132,3757.6,3756.8,0.2663]
[1717201070293,2.4511,3757.7,3756.9,3.57505]
[1717201070498,2.4511,3757.7,3756.9,2.92805]
[1717201070713,5.4511,3757.7,3756.9,2.92805]
[1717201073878,0.647,3757.6,3756.9,2.92805]
[1717201074219,3.647,3757.6,3756.9,2.92805]
[1717201076305,0.55,3757.5,3756.4,3.30907]
[1717201076494,0.647,3757.4,3756.4,2.66207]
[1717201076672,0.647,3757.4,3756.4,3.30907]
[1717201077310,0.647,3757.4,3756.5,0.2663]
[1717201078115,2.3055,3756.9,3755.4,1.065219]
[1717201078294,0.647,3756.3,3755.6,2.66266]
[1717201078523,0.647,3756.3,3755.3,0.1258101]
[1717201078524,9.7355,3756.9,3755.9,0.647]
[1717201078713,0.57562987,3756.8,3756.1,0.647]
[1717201078876,7.43,3756.9,3756.1,0.647]
[1717201079076,7.43,3756.9,3756.3,2.66219]
[1717201079268,2.3055,3757.2,3756.3,2.66219]
[1717201079471,0.647,3757.0,3756.3,2.66219]
[1717201079677,0.647,3756.8,3756.3,2.66219]
[1717201080291,0.647,3757.0,3756.3,2.66219]
[1717201080609,0.647,3757.0,3755.9,2.66245]
[1717201080813,0.647,3756.8,3755.9,3.30945]
[1717201080995,0.647,3756.8,3755.9,2.66245]
[1717201081355,0.647,3756.8,3756.0,0.2663]
[1717201081647,0.57560988,3757.0,3756.0,0.2663]
[1717201081788,0.647,3756.8,3756.0,0.2663]
[1717201081987,0.647,3756.8,3755.9,2.66245]
[1717201082724,0.647,3756.8,3755.9,2.92875]
[1717201082949,0.647,3756.8,3755.5,2.66275]
[1717201082950,2.3055,3756.7,3755.5,2.66275]
[1717201083105,0.647,3756.6,3755.6,0.647]
[1717201083305,0.647,3756.6,3755.5,2.66275]
[1717201083502,0.647,3756.6,3755.6,0.9133]
[1717201083787,0.647,3756.6,3755.6,0.647]
[1717201084606,0.647,3756.6,3755.7,0.2663]
[1717201085007,2.3055,3756.7,3755.7,3.020185]
[1717201085226,7.43,3756.8,3756.0,2.66237]
[1717201086602,7.43,3756.8,3756.2,2.66222]
[1717201086895,7.43,3756.8,3756.3,0.2663]
[1717201087092,7.43,3757.3,3756.6,0.647]
[1717201087289,7.43,3757.3,3756.4,2.4373]
[1717201087290,7.43,3757.3,3756.9,2.66176]
[1717201087792,7.43,3757.3,3756.9,2.92806]
[1717201088290,7.43,3757.3,3756.9,2.66176]
[1717201090919,7.43,3757.3,3756.4,5.09936]
[1717201091084,0.647,3756.9,3756.1,2.4373]
[1717201092319,0.647,3756.5,3756.0,2.66238]
[1717201093416,3.0,3756.9,3756.0,2.66238]
[1717201093717,2.66186,3756.8,3755.6,2.66267]
[1717201094022,3.0,3756.7,3755.6,2.66267]
[1717201094201,3.0,3756.7,3755.7,0.2663]
[1717201095018,2.3055,3756.6,3755.7,0.2663]
[1717201095164,2.66206,3756.5,3755.6,2.92897]
[1717201095507,2.66206,3756.5,3755.6,2.66267]
[1717201097375,2.3055,3756.6,3755.2,2.66295]
[1717201097376,2.66231,3756.2,3755.2,2.66295]
[1717201099518,2.66231,3756.2,3755.4,2.6628]
[1717201099718,4.9675,3756.6,3755.4,2.6628]
[1717201099924,3.55,3756.5,3755.4,2.6628]
[1717201100423,3.55,3756.5,3755.4,2.94166101]
[1717201100424,3.0,3756.5,3755.4,2.94166101]
[1717201100597,3.0,3756.5,3755.6,2.66265]
[1717201102110,3.0,3756.5,3755.9,2.66242]
[1717201102296,7.43,3756.8,3755.9,2.66242]
[1717201102297,3.0,3756.7,3755.9,2.66242]
[1717201102494,7.43,3756.8,3756.2,2.66222]
[1717201102732,7.43,3757.2,3756.2,4.96152]
[1717201103930,3.0,3757.1,3756.2,4.96152]
[1717201105012,7.43,3757.2,3756.2,4.96152]
[1717201105013,7.43,3757.2,3756.3,0.2663]
[1717201105349,7.43,3757.2,3756.4,0.52286]
[1717201105904,7.43,3757.2,3756.8,2.66178]
[1717201107223,12.24,3757.4,3756.8,2.66178]
[1717201107224,3.0,3757.6,3756.8,2.66178]
[1717201111247,3.0,3757.6,3756.8,2.92808]
[1717201111435,3.0,3757.6,3756.8,2.66178]
[1717201113668,2.66148,3757.3,3756.3,2.66213]
[1717201113975,3.0,3757.2,3756.3,2.66213]
[1717201114673,3.0,3757.2,3756.3,2.92843]
[1717201115761,3.0,3757.2,3756.3,3.451203]
[1717201115938,2.2768,3757.5,3756.3,3.451203]
[1717201115939,2.2768,3757.5,3756.6,2.66194]
[1717201116128,3.0,3757.6,3756.6,2.66194]
[1717201121655,0.647,3757.5,3756.6,2.66194]
[1717201122654,3.0,3757.6,3756.8,0.647]
[1717201122860,3.0,3757.6,3757.0,0.647]
[1717201123554,3.0,3757.6,3756.8,0.2663]
[1717201123555,3.0,3757.6,3757.3,2.66148]
[1717201124771,3.0,3757.6,3756.9,2.66173]
[1717201129028,3.0,3757.6,3756.6,0.2663]
[1717201129319,0.57553697,3757.5,3756.6,0.2663]
[1717201129467,3.78693697,3757.5,3756.5,2.662]
[1717201129673,3.57553697,3757.4,3756.5,2.662]
[1717201129991,3.0,3757.4,3756.5,2.9283]
[1717201130377,0.57555146,3757.3,3756.5,2.9283]
[1717201133047,2.3868,3757.2,3756.5,2.662]
[1717201133228,5.3868,3757.2,3756.5,2.662]
[1717201133433,0.57555184,3757.1,3756.5,2.662]
[1717201134541,0.57555184,3757.1,3755.9,2.4356]
[1717201134542,0.57555184,3757.1,3756.2,0.2663]
[1717201134975,2.6617,3757.0,3756.1,2.66229]
[1717201135276,5.96235184,3756.9,3756.1,2.66229]
[1717201135411,0.57555184,3756.8,3756.1,2.66229]
[1717201136623,0.5756222,3756.8,3756.1,2.66229]
[1717201137967,0.5756222,3756.8,3755.8,0.2663]
[1717201139470,3.21193,3756.7,3755.7,2.92887]
[1717201139676,0.5756222,3756.6,3755.7,2.92887]
[1717201139981,0.5756501,3756.6,3755.7,2.66257]
[1717201140341,0.5756501,3756.6,3755.3,0.1258101]
[1717201140342,4.96878,3756.5,3755.3,2.7886701]
[1717201140574,3.5756501,3756.4,3755.3,3.45508711]
[1717201140779,3.0,3756.4,3755.3,3.45508711]
[1717201140955,0.57568838,3756.3,3755.3,3.45508711]
[1717201141361,0.57568838,3756.3,3755.4,0.2663]
[1717201142257,0.57568838,3756.3,3755.3,3.45508711]
[1717201142459,0.57568838,3756.3,3755.4,0.2663]
[1717201142647,0.57568838,3756.3,3755.3,3.45508711]
[1717201143074,0.57571139,3756.3,3755.3,3.45508711]
[1717201143558,0.57571139,3756.3,3755.3,3.72138711]
[1717201144567,2.3067,3756.2,3755.3,3.0549701]
[1717201144745,2.3067,3756.2,3755.3,0.1258101]
[1717201145573,2.66241,3756.0,3755.3,0.1258101]
[1717201145777,2.3067,3755.8,3755.3,0.1258101]
[1717201146867,3.0,3755.9,3755.3,0.1258101]
[1717201153911,3.0,3755.9,3755.3,1.34873511]
[1717201154059,2.3067,3756.1,3755.3,1.34873511]
[1717201154959,2.3067,3756.1,3755.3,0.7728101]
[1717201155174,0.55,3756.0,3755.3,0.1258101]
[1717201155385,3.55,3756.0,3755.3,0.1258101]
[1717201155791,6.21241,3756.0,3755.3,0.1258101]
[1717201156683,3.0,3756.0,3755.3,0.3921101]
[1717201156895,0.647,3756.2,3755.3,3.08581511]
[1717201157673,3.0,3756.3,3755.4,2.6628]
[1717201157881,3.0,3756.3,3755.7,0.647]
[1717201158232,4.96858,3756.8,3756.0,2.3235]
[1717201158586,2.66188,3756.8,3756.1,0.647]
[1717201158923,12.3692,3757.2,3756.3,0.647]
[1717201159475,10.0916,3757.2,3756.3,0.647]
[1717201160611,7.43,3757.2,3756.8,0.647]
[1717201160936,7.43,3757.2,3756.8,1.221158]
[1717201161118,7.43,3757.2,3756.8,0.647]
[1717201161629,7.43,3757.2,3756.7,2.92818]
[1717201162733,7.43,3757.2,3756.8,0.2663]
[1717201162951,3.0,3757.6,3756.8,0.2663]
[1717201163741,3.0,3757.6,3756.7,2.92818]
[1717201165241,3.0,3757.6,3756.3,2.66218]
[1717201165387,4.93919,3757.2,3756.3,2.66218]
[1717201165590,2.66181,3756.9,3755.8,2.66252]
[1717201166228,3.0,3756.8,3755.8,2.92882]
[1717201166382,3.0,3756.8,3755.8,2.66252]
[1717201166584,2.66194,3756.7,3755.8,2.66252]
[1717201166853,3.55,3756.6,3755.4,2.6628]
[1717201166988,0.55,3756.6,3755.4,2.6628]
[1717201167189,1.12567735,3756.7,3755.5,0.2663]
[1717201167433,2.66206,3756.5,3755.4,3.18493101]
[1717201168184,2.66206,3756.5,3755.7,0.2663]
[1717201168380,5.66172,3757.0,3755.8,2.66251]
[1717201168587,0.57566395,3756.9,3755.8,2.66251]
[1717201168890,0.55,3756.8,3755.8,2.66251]
[1717201169309,0.55,3756.8,3755.8,2.92881]
[1717201170572,5.66172,3757.0,3756.1,2.92858]
[1717201170573,3.0,3757.0,3756.1,2.92858]
[1717201171317,3.0,3757.0,3756.1,2.66228]
[1717201171712,0.55,3756.9,3756.1,2.66228]
[1717201174915,3.0,3757.0,3756.1,2.66228]
[1717201175149,3.0,3757.0,3756.1,3.171778]
[1717201177075,3.0,3757.0,3756.2,0.2663]
[1717201177533,3.0,3757.0,3756.1,2.92858]
[1717201181670,3.0,3757.0,3756.1,3.57558]
[1717201183077,3.0,3757.0,3756.4,2.66211]
[1717201189006,0.647,3756.9,3756.0,5.09507]
[1717201189153,1.22259718,3756.9,3756.0,5.09507]
[1717201194303,0.647,3756.9,3756.0,5.09507]
[1717201194467,1.22261575,3756.9,3756.0,5.09507]
[1717201194671,0.57561575,3756.9,3756.0,5.47600456]
[1717201195070,3.0,3757.0,3756.5,2.66201]
[1717201195482,0.57559528,3756.9,3756.5,2.66201]
[1717201195879,3.0,3757.0,3756.5,2.66201]
[1717201197174,0.57559208,3756.9,3756.5,2.66201]
[1717201200415,7.43,3757.1,3756.7,3.30891]
[1717201200714,3.0,3757.4,3756.7,3.30891]
[1717201201018,0.57556342,3757.3,3756.7,3.30891]
[1717201201184,3.57556342,3757.3,3756.7,3.30891]
[1717201201368,0.57556342,3757.2,3756.7,3.30891]
[1717201201569,0.57556342,3757.4,3756.7,3.30891]
[1717201202119,2.6615,3757.3,3756.2,2.66221]
[1717201202326,0.647,3757.0,3756.3,0.2663]
[1717201202622,0.647,3757.0,3756.2,2.66221]
[1717201202768,0.57559968,3757.1,3756.2,2.66221]
[1717201203207,0.57559968,3757.1,3756.2,2.92851]
[1717201203382,2.3778,3757.0,3756.2,2.92851]
[1717201203769,0.57559968,3756.9,3756.2,2.92851]
[1717201203970,0.57559968,3756.9,3756.2,2.66221]
[1717201205428,0.5756026,3756.9,3756.2,2.66221]
[1717201207173,3.5756026,3756.9,3755.8,2.66251]
[1717201207387,2.66203,3756.6,3755.8,2.66251]
[1717201207634,0.5756026,3756.5,3755.8,2.66251]
[1717201209373,3.5756026,3756.5,3755.8,2.66251]
[1717201209684,3.5756026,3756.5,3755.4,0.52213101]
[1717201209685,2.66225,3756.3,3755.3,0.1258101]
[1717201209909,3.57568503,3756.2,3755.4,0.647]
[1717201210074,0.57568503,3756.1,3755.4,0.647]
[1717201210475,3.0,3756.2,3755.4,0.647]
[1717201211012,3.0,3756.2,3755.4,3.57611]
[1717201211901,3.0,3756.2,3755.4,3.93201407]
[1717201213126,3.0,3756.2,3755.4,3.30981]
[1717201213828,3.0,3756.2,3755.4,2.66281]
[1717201213979,3.0,3756.2,3755.4,3.30981]
[1717201214379,3.0,3756.2,3755.4,3.57611]
[1717201214894,3.0,3756.2,3755.6,3.30963]
[1717201215117,3.0,3756.4,3755.6,3.91301401]
[1717201216032,7.43,3756.5,3756.0,0.647]
[1717201218182,7.43,3756.5,3756.1,2.319]
[1717201221394,3.0,3756.9,3756.1,2.319]
[1717201221589,0.57563274,3756.8,3756.1,2.319]
[1717201221891,0.57563274,3756.8,3755.9,2.66242]
[1717201221892,0.647,3756.6,3755.9,2.66242]
[1717201222138,4.22263274,3756.6,3755.9,2.66242]
[1717201222300,3.647,3756.6,3755.9,2.66242]
[1717201223511,3.0,3756.6,3755.9,2.66242]
[1717201223668,5.2521,3756.7,3755.9,2.66242]
[1717201223900,2.799,3756.5,3755.1,0.2663]
[1717201224159,2.2521,3754.7,3754.0,1.39102428]
[1717201224319,0.647,3754.4,3753.3,0.64462706]
[1717201224669,2.66248,3755.9,3753.3,0.64462706]
[1717201224670,2.2521,3755.3,3754.2,0.647]
[1717201224872,2.2521,3755.3,3753.4,0.48853665]
[1717201224873,2.6631,3755.1,3753.5,4.98317]
[1717201225013,1.12589575,3755.0,3754.2,0.647]
[1717201225379,4.12589575,3755.0,3754.2,0.647]
[1717201225570,3.55,3755.0,3753.5,5.24947]
[1717201225768,2.66322,3754.9,3753.6,0.73279687]
[1717201226069,2.66336,3754.7,3753.5,2.66417]
[1717201226266,0.55,3754.6,3753.5,2.66417]
[1717201226565,2.66347,3754.5,3753.5,2.66417]
[1717201226725,3.0,3754.4,3753.5,2.66417]
[1717201230224,3.0,3754.4,3753.3,0.0882443]
[1717201230225,2.66362,3754.3,3753.3,0.0882443]
[1717201232739,3.0,3754.2,3753.3,0.0882443]
[1717201235429,7.43,3754.7,3753.4,4.98323]
[1717201235430,10.09333,3754.7,3753.4,4.98323]
[1717201235631,3.0,3754.6,3753.5,0.50714743]
[1717201237521,3.0,3754.6,3753.5,0.77344743]
[1717201238232,3.0,3754.6,3753.6,2.6641]
[1717201238433,3.0,3754.6,3753.6,2.9304]
[1717201238656,3.0,3754.6,3753.7,0.57565474]
[1717201240490,10.09333,3754.7,3753.8,2.66393]
[1717201240694,7.43,3754.7,3753.8,2.66393]
[1717201242284,7.43,3754.7,3753.9,0.2663]
[1717201243082,7.43,3754.7,3753.8,2.66393]
[1717201243258,7.43,3754.7,3753.8,3.25418847]
[1717201244491,7.43,3754.7,3753.9,0.2663]
[1717201245391,7.43,3754.7,3754.2,2.3875]
[1717201246162,7.43,3754.7,3754.2,3.0355]
[1717201249393,7.43,3754.7,3754.3,2.66359]
[1717201250718,0.648,3754.9,3754.3,2.66359]
[1717201253584,1.22390757,3754.9,3754.3,2.66359]
[1717201254685,0.57590757,3754.9,3754.3,2.66359]
[1717201257887,3.648,3755.0,3754.3,2.66359]
[1717201258907,0.57589823,3754.9,3754.3,2.66359]
[1717201259742,3.648,3755.0,3754.3,2.66359]
[1717201260615,3.0,3755.0,3754.3,2.66359]
[1717201260825,3.0,3755.0,3754.3,5.02549]
[1717201262616,0.57589682,3754.9,3754.3,5.02549]
[1717201263880,3.0,3755.0,3754.3,5.02549]
[1717201264678,7.43,3755.2,3754.6,2.66338]
[1717201265465,7.43,3755.2,3754.8,3.31123]
[1717201265701,0.17647147,3755.5,3755.0,3.31111]